bitfinex/quotes_BTCUSD_20240715
["timestamp","ask_amount","ask_price","bid_price","bid_amount"]
[1721081087086,0.00184,63720.0,63719.0,1.13400415]
[1721081087286,0.06098454,63720.0,63719.0,1.13400415]
[1721081087709,0.1036096,63720.0,63719.0,0.82012615]
[1721081087924,0.06098454,63720.0,63719.0,0.03643115]
[1721081088138,0.30151785,63720.0,63719.0,0.03643115]
[1721081088361,0.1036096,63720.0,63719.0,0.19337015]
[1721081088566,0.20694054,63720.0,63719.0,0.03643115]
[1721081088773,0.30151785,63720.0,63719.0,0.02243115]
[1721081088975,0.2450096,63720.0,63719.0,0.49324815]
[1721081089187,0.2450096,63720.0,63719.0,0.03643115]
[1721081089188,0.39514079,63720.0,63719.0,0.03643115]
[1721081089394,0.39514079,63720.0,63719.0,0.02243115]
[1721081089395,0.80617653,63720.0,63719.0,0.02243115]
[1721081089616,0.09913331,63714.0,63713.0,0.01149468]
[1721081089823,0.10596805,63714.0,63713.0,0.16844768]
[1721081090026,0.05914454,63714.0,63713.0,0.16844768]
[1721081090238,0.18232867,63719.0,63718.0,0.00843115]
[1721081090239,0.11705661,63719.0,63718.0,0.00843115]
[1721081090491,0.00184,63720.0,63718.0,0.00843115]
[1721081090492,0.04866979,63720.0,63719.0,0.17137015]
[1721081090695,0.1311264,63720.0,63719.0,0.16537015]
[1721081090907,0.07974857,63720.0,63719.0,0.47924815]
[1721081091105,0.06087979,63720.0,63719.0,0.47924815]
[1721081091520,0.1311455,63720.0,63719.0,0.9938179]
[1721081091729,0.1311455,63720.0,63719.0,1.6577959]
[1721081091730,0.00184,63720.0,63719.0,1.6577959]
[1721081092293,0.00184,63720.0,63719.0,1.7077959]
[1721081092661,0.00084,63720.0,63719.0,1.7077959]
[1721081092976,0.00084,63720.0,63719.0,2.0736739]
[1721081093125,0.00084,63720.0,63719.0,2.39292684]
[1721081093329,0.00084,63720.0,63719.0,2.0356739]
[1721081093494,0.00084,63720.0,63719.0,2.0716739]
[1721081093695,0.05520759,63734.0,63733.0,0.79295315]
[1721081093696,0.00835,63734.0,63733.0,0.79295315]
[1721081093911,0.00835,63734.0,63733.0,0.79195315]
[1721081093913,0.10939977,63734.0,63733.0,0.79195315]
[1721081094118,0.16590802,63734.0,63733.0,0.79195315]
[1721081094355,0.2361944,63734.0,63733.0,0.00743115]
[1721081094558,0.2361944,63734.0,63733.0,0.00643115]
[1721081094757,0.13608279,63734.0,63733.0,0.32024015]
[1721081095027,0.15250237,63734.0,63733.0,0.79095315]
[1721081095309,0.10987731,63734.0,63733.0,1.10476215]
[1721081095443,0.15347838,63734.0,63733.0,1.10476215]
[1721081095654,0.11015203,63734.0,63733.0,1.10876215]
[1721081096057,0.11015203,63734.0,63733.0,1.11776215]
[1721081096385,0.12984812,63734.0,63733.0,1.10876215]
[1721081096611,0.12984812,63734.0,63733.0,1.11776215]
[1721081096612,0.15328505,63734.0,63733.0,1.11776215]
[1721081096759,0.15328505,63734.0,63733.0,1.10876215]
[1721081097329,0.15330733,63734.0,63733.0,1.12076215]
[1721081097462,0.19593239,63734.0,63733.0,0.80295315]
[1721081097662,0.19594102,63734.0,63733.0,0.80295315]
[1721081098207,0.15331596,63734.0,63733.0,0.80695315]
[1721081098567,0.11126102,63734.0,63733.0,0.79095315]
[1721081098762,0.09584144,63734.0,63733.0,0.79995315]
[1721081098979,0.18958209,63734.0,63733.0,0.81295315]
[1721081099376,0.00935,63734.0,63733.0,0.81295315]
[1721081099798,0.13692513,63734.0,63733.0,0.81295315]
[1721081100172,0.06656969,63734.0,63733.0,0.81295315]
[1721081100375,0.13692568,63734.0,63733.0,0.81295315]
[1721081100593,0.13692179,63734.0,63733.0,1.12676215]
[1721081100793,0.13692179,63734.0,63733.0,1.1902539]
[1721081101163,0.06656969,63734.0,63733.0,1.1902539]
[1721081101274,0.13692179,63734.0,63733.0,1.12676215]
[1721081101480,0.06656969,63734.0,63733.0,1.12676215]
[1721081101782,0.00935,63734.0,63733.0,1.12676215]
[1721081101984,0.06738906,63734.0,63733.0,1.1902539]
[1721081102206,0.00935,63734.0,63733.0,1.12676215]
[1721081102633,0.06738902,63734.0,63733.0,1.12676215]
[1721081102832,0.06738902,63734.0,63733.0,1.1902539]
[1721081103088,0.11428194,63734.0,63733.0,1.1902539]
[1721081103484,0.11428194,63734.0,63733.0,1.5649629]
[1721081103485,0.06738902,63734.0,63733.0,1.5649629]
[1721081103678,0.06738902,63734.0,63733.0,1.6649629]
[1721081103837,0.00935,63734.0,63733.0,1.6650629]
[1721081104040,0.00083,63739.0,63738.0,1.53932584]
[1721081104241,0.00083,63739.0,63738.0,2.08002584]
[1721081104656,0.00083,63739.0,63738.0,2.3864349]
[1721081104852,0.00083,63739.0,63738.0,2.39380984]
[1721081105059,0.00083,63739.0,63738.0,2.0726509]
[1721081105259,0.00183,63739.0,63738.0,2.0856509]
[1721081106161,0.00183,63739.0,63738.0,2.0996509]
[1721081106360,0.00183,63739.0,63738.0,2.42080984]
[1721081106556,0.00835,63749.0,63748.0,1.6229299]
[1721081106785,0.00835,63749.0,63748.0,1.9730299]
[1721081107204,0.00835,63749.0,63748.0,1.7229299]
[1721081107411,0.00835,63749.0,63748.0,1.8229299]
[1721081107609,0.00835,63749.0,63748.0,2.1366649]
[1721081107816,0.00835,63749.0,63748.0,2.15803984]
[1721081108020,0.00835,63749.0,63748.0,2.1506649]
[1721081109428,0.00835,63749.0,63748.0,2.15803984]
[1721081109605,0.00835,63749.0,63748.0,2.18103984]
[1721081109805,0.00835,63749.0,63748.0,2.1876649]
[1721081110030,0.00835,63749.0,63748.0,1.8509299]
[1721081110759,0.00835,63749.0,63748.0,2.19503984]
[1721081110965,0.00835,63757.0,63756.0,0.06349175]
[1721081111191,0.00835,63757.0,63756.0,1.93542484]
[1721081111400,0.00835,63757.0,63756.0,2.00842484]
[1721081111597,0.00835,63757.0,63756.0,2.42211984]
[1721081112776,0.00835,63757.0,63756.0,2.4287449]
[1721081112986,0.00835,63757.0,63756.0,2.1010499]
[1721081113407,0.00835,63757.0,63756.0,2.0920499]
[1721081113621,0.00835,63757.0,63756.0,2.41311984]
[1721081113829,0.00835,63757.0,63756.0,2.44711984]
[1721081114041,0.00835,63757.0,63756.0,2.4397449]
[1721081114243,0.00835,63757.0,63756.0,2.4287449]
[1721081114457,0.00835,63757.0,63756.0,2.36525315]
[1721081114694,0.00835,63757.0,63756.0,2.45011984]
[1721081114914,0.00835,63757.0,63756.0,2.4197449]
[1721081115124,0.00835,63757.0,63756.0,2.41311984]
[1721081115329,0.00835,63757.0,63756.0,2.45011984]
[1721081115537,0.00835,63757.0,63756.0,2.43611984]
[1721081115781,0.00835,63757.0,63756.0,2.4427449]
[1721081115981,0.00835,63757.0,63756.0,2.4197449]
[1721081116612,0.00835,63757.0,63756.0,2.0560499]
[1721081117465,0.00835,63757.0,63756.0,1.38246315]
[1721081117719,0.00835,63757.0,63756.0,1.4319549]
[1721081117945,0.00835,63757.0,63756.0,1.7596499]
[1721081118359,0.00835,63757.0,63756.0,1.7456499]
[1721081118793,0.00835,63757.0,63756.0,1.7597499]
[1721081118990,0.00835,63757.0,63756.0,1.86712484]
[1721081119228,0.00835,63757.0,63756.0,1.9760499]
[1721081119501,0.00835,63757.0,63756.0,1.91255815]
[1721081119750,0.00835,63757.0,63756.0,1.9760499]
[1721081120414,0.00835,63757.0,63756.0,1.86255815]
[1721081120615,0.00835,63757.0,63756.0,1.9260499]
[1721081121466,0.00835,63757.0,63756.0,1.9760499]
[1721081121670,0.00835,63757.0,63756.0,2.0553499]
[1721081121874,0.00835,63757.0,63756.0,2.11272484]
[1721081122534,0.00835,63764.0,63763.0,1.58877184]
[1721081122785,0.00835,63764.0,63763.0,1.98447184]
[1721081122992,0.00835,63764.0,63763.0,2.0770969]
[1721081123417,0.00835,63764.0,63763.0,2.01360515]
[1721081123632,0.00835,63764.0,63763.0,2.39813284]
[1721081124079,0.00835,63764.0,63763.0,2.09847184]
[1721081124281,0.00835,63764.0,63763.0,2.0910969]
[1721081124722,0.00835,63764.0,63763.0,2.09847184]
[1721081125351,0.00835,63764.0,63763.0,2.11247184]
[1721081125557,0.00835,63764.0,63763.0,2.42613284]
[1721081125765,0.00835,63764.0,63763.0,2.35526615]
[1721081125991,0.00835,63764.0,63763.0,2.11247184]
[1721081126197,0.00835,63764.0,63763.0,2.13547184]
[1721081126395,0.00835,63764.0,63763.0,2.44913284]
[1721081126802,0.00835,63764.0,63763.0,2.13547184]
[1721081127323,0.00835,63764.0,63763.0,2.1050969]
[1721081128175,0.00835,63764.0,63763.0,2.0550969]
[1721081128409,0.00835,63764.0,63763.0,1.9094969]
[1721081129186,0.00835,63764.0,63763.0,1.5958359]
[1721081129525,0.00835,63764.0,63763.0,1.91687184]
[1721081129929,0.00835,63764.0,63763.0,1.8594969]
[1721081130131,0.00835,63764.0,63763.0,1.96687184]
[1721081130350,0.00835,63764.0,63763.0,2.02987184]
[1721081130565,0.00835,63764.0,63763.0,1.9724969]
[1721081130885,0.00835,63764.0,63763.0,2.0224969]
[1721081131574,0.00835,63764.0,63763.0,1.9724969]
[1721081131902,0.00835,63764.0,63763.0,1.9594969]
[1721081132104,0.00835,63764.0,63763.0,1.96687184]
[1721081132338,0.00835,63764.0,63763.0,1.9594969]
[1721081132760,0.00835,63764.0,63763.0,1.9094969]
[1721081132961,0.00835,63764.0,63763.0,1.9594969]
[1721081133622,0.00835,63764.0,63763.0,1.96687184]
[1721081134017,0.00835,63764.0,63763.0,2.04257184]
[1721081134224,0.00835,63764.0,63763.0,2.35623284]
[1721081134505,0.00835,63765.0,63764.0,1.58874984]
[1721081134737,0.00835,63765.0,63764.0,1.68874984]
[1721081135536,0.00835,63765.0,63764.0,2.00240584]
[1721081136085,0.00835,63765.0,63764.0,2.01640584]
[1721081136286,0.01640806,63779.0,63776.0,1.4811089]
[1721081136447,0.01640806,63779.0,63776.0,1.7312089]
[1721081137004,0.01640806,63779.0,63776.0,1.9584089]
[1721081137247,4e-05,63780.0,63776.0,1.9584089]
[1721081138351,4e-05,63780.0,63776.0,1.5306119]
[1721081138738,4e-05,63780.0,63776.0,1.5176119]
[1721081138964,4e-05,63780.0,63776.0,1.77671715]
[1721081139296,4e-05,63780.0,63776.0,1.8542089]
[1721081139467,4e-05,63780.0,63776.0,1.8312089]
[1721081139904,4e-05,63780.0,63776.0,2.31238084]
[1721081140109,4e-05,63780.0,63779.0,1.20396815]
[1721081140514,4e-05,63780.0,63779.0,1.3904599]
[1721081140846,4e-05,63780.0,63779.0,1.7040419]
[1721081141270,4e-05,63780.0,63779.0,1.71141684]
[1721081141609,4e-05,63780.0,63779.0,1.67541684]
[1721081141810,4e-05,63780.0,63779.0,1.72541684]
[1721081142024,4e-05,63780.0,63779.0,1.79361684]
[1721081142225,4e-05,63780.0,63779.0,1.80761684]
[1721081143275,4e-05,63780.0,63779.0,1.75761684]
[1721081143477,4e-05,63780.0,63779.0,1.77161684]
[1721081143676,4e-05,63780.0,63779.0,1.82161684]
[1721081144194,4e-05,63780.0,63779.0,1.77161684]
[1721081144426,4e-05,63780.0,63779.0,1.6820419]
[1721081144553,4e-05,63780.0,63779.0,1.6590419]
[1721081145554,4e-05,63780.0,63779.0,1.6090419]
[1721081145761,4e-05,63780.0,63779.0,1.2954599]
[1721081146614,4e-05,63780.0,63779.0,1.2814599]
[1721081147019,4e-05,63780.0,63779.0,1.2954599]
[1721081147934,4e-05,63780.0,63779.0,1.2814599]
[1721081148159,4e-05,63780.0,63779.0,1.2954599]
[1721081149134,4e-05,63780.0,63779.0,1.6091419]
[1721081149922,4e-05,63780.0,63779.0,1.6911419]
[1721081150149,4e-05,63780.0,63779.0,1.6091419]
[1721081150668,4e-05,63780.0,63779.0,1.5951419]
[1721081151142,4e-05,63780.0,63779.0,1.6091419]
[1721081151395,4e-05,63780.0,63779.0,1.5951419]
[1721081151877,4e-05,63780.0,63779.0,1.58851684]
[1721081152138,4e-05,63780.0,63779.0,1.5811419]
[1721081152363,4e-05,63780.0,63779.0,1.5951419]
[1721081152841,4e-05,63780.0,63779.0,1.67551684]
[1721081153072,4e-05,63780.0,63779.0,1.6821419]
[1721081153825,4e-05,63780.0,63779.0,1.6681419]
[1721081154063,4e-05,63780.0,63779.0,1.68951684]
[1721081154556,4e-05,63780.0,63779.0,1.6681419]
[1721081154788,4e-05,63780.0,63779.0,1.6821419]
[1721081155015,4e-05,63780.0,63779.0,1.6681419]
[1721081155476,4e-05,63780.0,63779.0,1.68951684]
[1721081155707,4e-05,63780.0,63779.0,1.6681419]
[1721081155933,4e-05,63780.0,63779.0,1.6541419]
[1721081156128,4e-05,63780.0,63779.0,1.6681419]
[1721081156383,4e-05,63780.0,63779.0,2.05309884]
[1721081156867,4e-05,63780.0,63779.0,2.03909884]
[1721081157072,4e-05,63780.0,63779.0,2.05309884]
[1721081157492,4e-05,63780.0,63779.0,1.7181419]
[1721081157703,4e-05,63780.0,63779.0,1.6541419]
[1721081157903,4e-05,63780.0,63779.0,1.7181419]
[1721081158104,4e-05,63780.0,63779.0,1.7321419]
[1721081158310,4e-05,63780.0,63779.0,1.5951419]
[1721081158721,4e-05,63780.0,63779.0,1.6091419]
[1721081159133,4e-05,63780.0,63779.0,1.5951419]
[1721081159743,4e-05,63780.0,63779.0,1.5811419]
[1721081160185,4e-05,63780.0,63779.0,1.5951419]
[1721081160418,4e-05,63780.0,63779.0,1.11806815]
[1721081160625,0.06111508,63780.0,63779.0,1.11806815]
[1721081160831,4e-05,63780.0,63779.0,1.11806815]
[1721081161036,0.06111508,63780.0,63779.0,1.11806815]
[1721081161244,0.0612116,63780.0,63779.0,1.10406815]
[1721081161664,0.0612116,63780.0,63779.0,1.1815599]
[1721081161872,4e-05,63780.0,63779.0,1.1815599]
[1721081162083,4e-05,63780.0,63779.0,1.11806815]
[1721081162288,0.0612116,63780.0,63779.0,1.1815599]
[1721081162693,4e-05,63780.0,63779.0,1.11806815]
[1721081163131,4e-05,63780.0,63779.0,1.1815599]
[1721081163545,4e-05,63780.0,63779.0,1.13206815]
[1721081164163,4e-05,63780.0,63779.0,1.1955599]
[1721081164781,0.06209312,63780.0,63779.0,1.1955599]
[1721081165193,0.06209312,63780.0,63779.0,1.5091419]
[1721081165621,4e-05,63780.0,63779.0,1.5091419]
[1721081165828,4e-05,63780.0,63779.0,1.1955599]
[1721081166239,4e-05,63780.0,63779.0,1.5091419]
[1721081166588,4e-05,63780.0,63779.0,1.1955599]
[1721081166995,0.00087,63780.0,63779.0,1.1955599]
[1721081167137,0.06292312,63780.0,63779.0,1.1955599]
[1721081167337,0.06284777,63780.0,63779.0,1.1955599]
[1721081168152,0.07097313,63780.0,63779.0,1.1955599]
[1721081168708,0.11793055,63780.0,63779.0,1.1955599]
[1721081169528,0.21107313,63780.0,63779.0,1.1955599]
[1721081170471,0.28150926,63780.0,63779.0,1.1955599]
[1721081170771,0.28153827,63780.0,63779.0,1.1955599]
[1721081171196,0.14143827,63780.0,63779.0,1.1955599]
[1721081171840,0.14143827,63780.0,63779.0,1.5091419]
[1721081172048,0.14143827,63780.0,63779.0,1.1955599]
[1721081172245,0.07097313,63780.0,63779.0,1.1955599]
[1721081172445,0.14143827,63780.0,63779.0,1.5091419]
[1721081173081,0.11795446,63780.0,63779.0,1.5091419]
[1721081173285,0.0750414,63780.0,63779.0,1.5091419]
[1721081173492,0.0750414,63780.0,63779.0,1.44565015]
[1721081173493,0.12202273,63780.0,63779.0,1.44565015]
[1721081173908,0.12202273,63780.0,63779.0,1.5091419]
[1721081173909,0.06004877,63780.0,63779.0,1.5091419]
[1721081174122,0.07485277,63780.0,63779.0,1.5091419]
[1721081174337,0.07485277,63780.0,63779.0,1.59851684]
[1721081174541,0.07485277,63780.0,63779.0,1.6091419]
[1721081174746,0.07485277,63780.0,63779.0,1.54565015]
[1721081174954,0.06265914,63780.0,63779.0,1.54565015]
[1721081175159,0.12182324,63780.0,63779.0,1.54565015]
[1721081175562,0.0748381,63780.0,63779.0,1.54565015]
[1721081175765,0.0748381,63780.0,63779.0,1.6091419]
[1721081176181,0.06265914,63780.0,63779.0,1.6091419]
[1721081176589,0.10964428,63780.0,63779.0,1.6091419]
[1721081177034,0.00087,63780.0,63779.0,1.54565015]
[1721081177235,0.06287147,63780.0,63779.0,1.54565015]
[1721081177458,0.06287147,63780.0,63779.0,1.6091419]
[1721081177666,0.06287075,63780.0,63779.0,1.6091419]
[1721081178517,0.10988486,63780.0,63779.0,1.6091419]
[1721081178702,0.06287075,63780.0,63779.0,1.6091419]
[1721081179249,0.13339191,63780.0,63779.0,1.8392419]
[1721081179674,0.13342416,63780.0,63779.0,1.8392419]
[1721081179876,0.13342416,63780.0,63779.0,1.77575015]
[1721081180295,0.13342416,63780.0,63779.0,1.82575015]
[1721081180296,0.13329386,63780.0,63779.0,1.82575015]
[1721081180519,0.04703272,63781.0,63780.0,1.58196269]
[1721081180746,0.04703272,63783.0,63782.0,0.17086669]
[1721081180946,0.00835,63784.0,63782.0,0.17086669]
[1721081180947,0.00835,63784.0,63783.0,1.26833669]
[1721081181155,0.00835,63784.0,63783.0,1.72629969]
[1721081181364,0.00835,63784.0,63783.0,2.06286269]
[1721081181584,0.00835,63784.0,63783.0,2.16286269]
[1721081181792,0.11758889,63793.0,63783.0,2.16286269]
[1721081181793,0.04703272,63790.0,63789.0,0.22025775]
[1721081182002,0.11758889,63796.0,63790.0,0.94731175]
[1721081182003,0.04703272,63791.0,63790.0,0.94731175]
[1721081182214,0.04703272,63791.0,63790.0,1.57436775]
[1721081182432,0.07055333,63793.0,63792.0,0.783795]
[1721081182433,0.09406015,63793.0,63792.0,0.783795]
[1721081182640,0.1469,63793.0,63792.0,0.883795]
[1721081182853,0.1469,63793.0,63792.0,0.783795]
[1721081182854,0.20921912,63793.0,63792.0,0.783795]
[1721081183280,0.20921912,63793.0,63792.0,1.097313]
[1721081183492,0.20775135,63793.0,63792.0,1.097313]
[1721081183904,0.20775135,63793.0,63792.0,1.16080475]
[1721081183905,0.12615135,63793.0,63792.0,1.16080475]
[1721081184109,0.12615135,63793.0,63792.0,1.097313]
[1721081184519,0.06085135,63793.0,63792.0,1.097313]
[1721081184745,0.0653,63796.0,63795.0,1.097264]
[1721081184947,0.12658693,63796.0,63795.0,1.097264]
[1721081186278,0.12658693,63796.0,63795.0,1.111264]
[1721081186487,0.04266506,63800.0,63799.0,0.78371]
[1721081186488,0.06444,63800.0,63799.0,0.78371]
[1721081186709,0.06444,63800.0,63799.0,1.097194]
[1721081186912,0.20547358,63800.0,63799.0,1.097194]
[1721081187091,0.25286215,63800.0,63799.0,1.097194]
[1721081187296,0.1228334,63800.0,63799.0,1.097194]
[1721081187725,0.1228334,63800.0,63799.0,1.107194]
[1721081187726,0.11182857,63800.0,63799.0,1.107194]
[1721081188343,0.11182857,63800.0,63799.0,1.434678]
[1721081188344,0.07338855,63800.0,63799.0,1.434678]
[1721081188540,0.12848443,63800.0,63799.0,1.420678]
[1721081188744,0.11748445,63800.0,63799.0,1.48416975]
[1721081188973,0.06238857,63800.0,63799.0,1.434678]
[1721081189187,0.11748445,63801.0,63800.0,1.47414675]
[1721081189344,0.00834,63803.0,63802.0,0.06349175]
[1721081189345,0.10231849,63803.0,63802.0,0.06349175]
[1721081189558,0.07880082,63803.0,63802.0,1.41073275]
[1721081189757,0.00834,63803.0,63802.0,1.66071]
[1721081189959,0.00834,63803.0,63802.0,2.097179]
[1721081190162,0.00834,63803.0,63802.0,1.94720175]
[1721081190362,0.00834,63803.0,63802.0,1.95457669]
[1721081190742,0.00834,63803.0,63802.0,2.28204569]
[1721081191663,0.00834,63803.0,63802.0,2.03720175]
[1721081191884,0.00834,63803.0,63802.0,2.02320175]
[1721081192099,0.00834,63803.0,63802.0,2.05120175]
[1721081192491,0.00834,63803.0,63802.0,2.00120175]
[1721081192652,0.00834,63803.0,63802.0,1.91120175]
[1721081192852,0.00834,63803.0,63802.0,1.87520175]
[1721081193090,0.00834,63803.0,63802.0,1.475241]
[1721081193315,0.00834,63803.0,63802.0,1.85220175]
[1721081196638,0.00834,63803.0,63802.0,2.04630175]
[1721081196823,0.00834,63803.0,63802.0,2.00530175]
[1721081197061,0.00834,63803.0,63802.0,1.92520175]
[1721081197685,0.00834,63803.0,63802.0,2.39014569]
[1721081197884,0.00834,63803.0,63802.0,2.44014569]
[1721081198061,0.00834,63803.0,63802.0,2.369279]
[1721081198515,0.00834,63803.0,63802.0,2.39014569]
[1721081198714,0.00834,63803.0,63802.0,2.42614569]
[1721081199230,0.00834,63803.0,63802.0,2.44014569]
[1721081199433,0.00834,63803.0,63802.0,2.41214569]
[1721081199644,0.00834,63803.0,63802.0,2.42614569]
[1721081199853,0.00834,63803.0,63802.0,2.44014569]
[1721081200265,0.00834,63803.0,63802.0,2.42614569]
[1721081201311,0.00834,63803.0,63802.0,2.41214569]
[1721081201506,0.00834,63803.0,63802.0,2.42614569]
[1721081202294,0.00834,63803.0,63802.0,2.44014569]
[1721081202509,0.00834,63803.0,63802.0,2.42614569]
[1721081202995,0.00834,63803.0,63802.0,2.44014569]
[1721081203783,0.00834,63803.0,63802.0,2.43277075]
[1721081204032,0.00834,63803.0,63802.0,2.44014569]
[1721081204172,0.00834,63803.0,63802.0,2.11930175]
[1721081204398,0.00834,63803.0,63802.0,2.04181]
[1721081204600,0.00834,63803.0,63802.0,1.94181]
[1721081205003,0.00834,63803.0,63802.0,1.99181]
[1721081205183,0.00834,63803.0,63802.0,2.05530175]
[1721081205400,0.00834,63803.0,63802.0,2.04130175]
[1721081205605,0.00834,63803.0,63802.0,2.00530175]
[1721081206197,0.00834,63803.0,63802.0,1.92520175]
[1721081206885,0.00834,63803.0,63802.0,1.85220175]
[1721081208454,0.00834,63803.0,63802.0,1.90220175]
[1721081208652,0.00834,63803.0,63802.0,1.85220175]
[1721081208852,0.00834,63803.0,63802.0,1.95220175]
[1721081209052,0.00834,63803.0,63802.0,1.97520175]
[1721081209640,0.00834,63803.0,63802.0,1.91171]
[1721081210058,0.00834,63803.0,63802.0,1.97821]
[1721081210456,0.00834,63803.0,63802.0,2.04170175]
[1721081211357,0.00834,63803.0,63802.0,1.97821]
[1721081211556,0.00834,63803.0,63802.0,2.04907669]
[1721081211899,0.00834,63803.0,63802.0,1.97821]
[1721081212108,0.00834,63803.0,63802.0,2.291679]
[1721081212310,0.00834,63803.0,63802.0,2.04170175]
[1721081212785,0.00834,63803.0,63802.0,2.04907669]
[1721081213130,0.00834,63803.0,63802.0,2.04170175]
[1721081213285,0.00834,63803.0,63802.0,1.99170175]
[1721081213490,0.00834,63803.0,63802.0,2.04170175]
[1721081213971,0.00834,63803.0,63802.0,1.97520175]
[1721081214145,0.00834,63803.0,63802.0,1.85220175]
[1721081216738,0.00834,63803.0,63802.0,1.99090175]
[1721081218259,0.00834,63803.0,63802.0,2.07127669]
[1721081218691,0.00834,63803.0,63802.0,2.06390175]
[1721081219505,0.00834,63803.0,63802.0,2.37737075]
[1721081220457,0.00834,63803.0,63802.0,2.06390175]
[1721081220663,0.00834,63803.0,63802.0,2.00370175]
[1721081220864,0.06323967,63803.0,63802.0,1.92520175]
[1721081221060,0.06323967,63803.0,63802.0,1.85220175]
[1721081221061,0.12363966,63803.0,63802.0,1.85220175]
[1721081221854,0.12363966,63803.0,63802.0,1.78871]
[1721081222140,0.06323966,63803.0,63802.0,1.85220175]
[1721081222677,0.06323966,63803.0,63802.0,2.152179]
[1721081222880,0.00834,63803.0,63802.0,2.175179]
[1721081223537,0.00834,63803.0,63802.0,2.225179]
[1721081224395,0.00834,63803.0,63802.0,2.211179]
[1721081224580,0.00834,63813.0,63812.0,1.47388175]
[1721081224791,0.00834,63813.0,63812.0,1.72398175]
[1721081224792,0.06393873,63813.0,63812.0,1.72398175]
[1721081225215,0.00834,63813.0,63812.0,1.82398175]
[1721081225505,0.00834,63813.0,63812.0,2.36117669]
[1721081225706,0.00834,63821.0,63820.0,1.146833]
[1721081225927,0.00834,63821.0,63820.0,1.79680575]
[1721081226149,0.00834,63821.0,63820.0,1.733314]
[1721081226355,0.0655578,63821.0,63820.0,1.733314]
[1721081227209,0.00834,63821.0,63820.0,1.733314]
[1721081227394,0.00834,63821.0,63820.0,1.747314]
[1721081227546,0.06517779,63821.0,63820.0,1.747314]
[1721081227726,0.0651761,63821.0,63820.0,1.747314]
[1721081228541,0.0651761,63821.0,63820.0,1.81080575]
[1721081229151,0.0651761,63821.0,63820.0,1.81818069]
[1721081229345,0.0651761,63821.0,63820.0,2.27496169]
[1721081229346,0.00834,63821.0,63820.0,2.27496169]
[1721081229564,0.00834,63821.0,63820.0,2.28896169]
[1721081230022,0.00834,63821.0,63820.0,2.28158675]
[1721081230253,0.00834,63821.0,63820.0,2.28896169]
[1721081230460,0.00835,63828.0,63827.0,1.98767469]
[1721081230658,0.00835,63828.0,63827.0,2.36077469]
[1721081230806,0.00835,63828.0,63827.0,2.41077469]
[1721081231645,0.00835,63828.0,63827.0,2.40339975]
[1721081231926,0.00835,63828.0,63827.0,2.339908]
[1721081232139,0.00835,63828.0,63827.0,2.40339975]
[1721081232343,0.00835,63828.0,63827.0,2.42477469]
[1721081232747,0.00835,63828.0,63827.0,2.41077469]
[1721081232969,0.00835,63828.0,63827.0,2.50202591]
[1721081233168,0.00834,63829.0,63828.0,2.04071122]
[1721081233406,0.00834,63829.0,63828.0,2.15496244]
[1721081233573,0.00834,63829.0,63828.0,2.25496244]
[1721081233808,4e-05,63830.0,63829.0,1.823353]
[1721081234003,0.0127428,63837.0,63836.0,0.73421969]
[1721081234159,0.0127428,63837.0,63836.0,1.9460416]
[1721081234361,0.0127428,63837.0,63836.0,2.5726456]
[1721081235645,0.00834,63841.0,63840.0,1.89392269]
[1721081235843,0.00834,63841.0,63840.0,2.01692269]
[1721081236289,0.00834,63841.0,63840.0,2.35827391]
[1721081236484,0.00834,63844.0,63843.0,1.822974]
[1721081236761,0.00834,63844.0,63843.0,2.01684069]
[1721081237139,0.00834,63844.0,63843.0,2.1789586]
[1721081237431,4e-05,63850.0,63844.0,1.89381269]
[1721081237679,4e-05,63850.0,63844.0,2.18199413]
[1721081237851,4e-05,63850.0,63844.0,2.32539413]
[1721081238733,0.13998,63859.0,63858.0,1.15967075]
[1721081238936,0.13998,63859.0,63858.0,1.40977075]
[1721081239705,0.13998,63859.0,63858.0,1.096179]
[1721081239895,0.05650825,63864.0,63850.0,0.156615]
[1721081239896,0.04262506,63853.0,63850.0,0.156615]
[1721081240103,0.04262506,63853.0,63844.0,0.128]
[1721081240104,0.0663,63853.0,63852.0,0.469835]
[1721081240308,0.0663,63853.0,63852.0,0.783058]
[1721081240841,0.0663,63853.0,63852.0,1.096282]
[1721081241285,0.16543331,63853.0,63852.0,1.096282]
[1721081241503,0.16543331,63853.0,63852.0,0.783058]
[1721081241504,0.10892506,63853.0,63852.0,0.783058]
[1721081241706,0.16543331,63853.0,63852.0,0.783058]
[1721081241907,0.18412506,63853.0,63852.0,0.783058]
[1721081242119,0.1415,63853.0,63852.0,0.783058]
[1721081242381,0.1415,63853.0,63852.0,0.797058]
[1721081244154,0.18412506,63853.0,63852.0,0.783058]
[1721081244372,0.1415,63853.0,63852.0,0.796058]
[1721081244754,0.1966281,63853.0,63852.0,0.796058]
[1721081244964,0.1966281,63853.0,63852.0,0.027]
[1721081244965,0.25313635,63853.0,63852.0,0.027]
[1721081245173,0.25313635,63853.0,63852.0,0.169612]
[1721081245380,0.25313635,63853.0,63852.0,0.482836]
[1721081245586,0.25313635,63853.0,63852.0,0.496836]
[1721081245786,0.29909266,63853.0,63852.0,0.496836]
[1721081245983,0.29909266,63853.0,63852.0,0.183612]
[1721081246219,0.31156728,63853.0,63852.0,0.183612]
[1721081246579,0.31156701,63853.0,63852.0,0.183612]
[1721081247834,0.31156701,63853.0,63852.0,0.027]
[1721081248215,0.39261939,63853.0,63852.0,0.027]
[1721081248646,0.39261939,63853.0,63852.0,0.014]
[1721081248899,0.39261939,63853.0,63848.0,0.00306353]
[1721081248900,0.16433331,63849.0,63848.0,0.00306353]
[1721081249131,0.4577759,63849.0,63848.0,0.00306353]
[1721081249347,0.4577759,63849.0,63838.0,0.313292]
[1721081249348,0.4577759,63849.0,63842.0,0.00306353]
[1721081249349,0.09913331,63843.0,63842.0,0.00306353]
[1721081249558,0.30116152,63843.0,63842.0,0.00306353]
[1721081249759,0.30116152,63843.0,63839.0,0.156643]
[1721081249760,0.24383331,63840.0,63839.0,0.156643]
[1721081250206,0.25631199,63840.0,63839.0,0.156643]
[1721081250406,0.15717868,63840.0,63839.0,0.156643]
[1721081250612,0.15717868,63840.0,63839.0,0.469931]
[1721081250818,0.15717868,63840.0,63839.0,0.783219]
[1721081251243,0.1447,63840.0,63839.0,0.783219]
[1721081251461,0.15710032,63840.0,63839.0,1.096507]
[1721081251668,0.15710032,63840.0,63839.0,1.17299875]
[1721081251669,0.1447,63840.0,63839.0,1.17299875]
[1721081251869,0.04262506,63848.0,63847.0,0.78312]